bitfinex-derivatives/quotes_ETHF0:USTF0_20251024
["timestamp","ask_amount","ask_price","bid_price","bid_amount"]
[1761323965083,0.6442,3874.7,3874.6,1.25967]
[1761323965084,0.3775,3874.7,3874.6,1.25967]
[1761323965473,0.414,3875.0,3874.9,1.25963]
[1761323965676,3.2078,3875.3,3875.2,0.5078]
[1761323965677,0.5255,3875.3,3875.2,0.5078]
[1761323965872,0.90602196,3875.3,3875.2,0.00320031]
[1761323967384,0.90602196,3875.3,3875.2,0.26380031]
[1761323967580,0.90602196,3875.3,3875.2,0.51100031]
[1761323967782,0.90602196,3875.3,3875.2,0.26380031]
[1761323967978,0.90602196,3875.3,3875.2,0.00320031]
[1761323968286,0.90602196,3875.3,3875.2,0.26380031]
[1761323968582,0.64722196,3875.3,3875.2,0.79840031]
[1761323968977,0.64722196,3875.3,3875.2,0.51100031]
[1761323969184,0.90602196,3875.3,3875.2,0.51100031]
[1761323970080,0.38052196,3875.3,3875.2,0.79840031]
[1761323970682,0.3775,3875.6,3875.5,1.25956]
[1761323971079,0.903,3875.6,3875.5,0.97216]
[1761323972088,0.90586447,3875.6,3875.5,0.97216]
[1761323972284,0.90586447,3875.6,3875.2,3.21100031]
[1761323972586,0.903,3875.3,3875.2,4.18320031]
[1761323972787,0.903,3875.3,3875.2,13.43520031]
[1761323973786,0.903,3875.3,3875.2,13.69190031]
[1761323974186,0.903,3875.3,3875.2,13.43520031]
[1761323974482,0.903,3875.3,3875.2,4.18320031]
[1761323974689,0.903,3875.3,3875.2,13.43420031]
[1761323974986,0.903,3875.3,3875.2,4.18320031]
[1761323976281,0.903,3875.3,3875.2,3.71880031]
[1761323976783,0.6442,3875.3,3875.2,4.43990031]
[1761323977680,0.3775,3875.3,3875.2,4.43990031]
[1761323978982,0.7745,3875.5,3875.4,0.94067]
[1761323979481,0.7745,3875.5,3875.4,1.18587]
[1761323980185,1.0263,3875.5,3875.4,0.69817]
[1761323980490,1.0263,3875.5,3875.4,0.2338]
[1761323980688,1.0263,3875.5,3875.4,0.69817]
[1761323982284,1.0263,3875.5,3875.2,3.21100031]
[1761323982285,0.376,3875.4,3875.2,0.00320031]
[1761323982485,0.6503,3875.5,3875.2,0.00320031]
[1761323982486,0.879,3875.3,3875.2,0.00320031]
[1761323982689,0.879,3874.7,3874.6,3.2078]
[1761323983391,0.879,3874.7,3874.6,3.67227]
[1761323983591,0.879,3874.7,3874.6,4.14857]
[1761323983991,0.879,3874.7,3874.6,4.15185178]
[1761323985296,0.879,3874.7,3874.6,3.68738178]
[1761323985487,0.879,3874.7,3874.6,4.15185178]
[1761323987292,0.879,3874.7,3874.6,0.94405178]
[1761323988194,1.4423024,3874.7,3874.6,0.00328178]
[1761323989587,6.4423024,3874.7,3874.6,0.00328178]
[1761323990594,0.879,3873.9,3873.8,3.4416]
[1761323990793,0.879,3873.9,3873.8,3.2078]
[1761323991187,1.44336702,3873.9,3873.8,3.2078]
[1761323991494,1.44336702,3873.9,3873.8,3.44487369]
[1761323991694,0.879,3873.9,3873.8,3.44487369]
[1761323991989,0.376,3873.9,3873.8,4.39714369]
[1761323992199,0.879,3874.2,3874.1,0.4763]
[1761323992691,0.879,3874.2,3873.8,3.44487369]
[1761323992692,0.1512,3874.0,3873.8,3.44487369]
[1761323992892,0.879,3873.9,3873.8,3.44487369]
[1761323993086,0.879,3873.9,3873.8,3.90944369]
[1761323993694,0.879,3873.9,3873.8,3.44487369]
[1761323993889,0.879,3873.9,3873.8,3.21107369]
[1761323994092,0.879,3873.9,3873.8,3.67564369]
[1761323994287,0.879,3873.9,3873.8,4.15194369]
[1761323996497,0.376,3873.9,3873.8,4.39714369]
[1761323998393,0.6272,3873.9,3873.8,4.39714369]
[1761323998705,0.6272,3873.9,3873.8,4.15194369]
[1761324000303,0.8481,3873.9,3873.8,4.15194369]
[1761324000498,0.376,3873.9,3873.8,4.34954369]
[1761324000700,0.5826,3874.4,3874.3,0.3952]
[1761324000900,0.8035,3874.4,3874.3,0.3952]
[1761324001403,0.8035,3874.4,3873.8,3.21107369]
[1761324001404,0.8035,3874.2,3874.1,0.46453]
[1761324001604,0.8035,3874.2,3874.1,0.66213]
[1761324001805,0.8035,3874.2,3874.1,0.85973]
[1761324002002,0.8035,3874.2,3874.1,0.3952]
[1761324002202,0.8035,3874.2,3874.1,0.85973]
[1761324005211,0.8035,3874.2,3874.1,0.3952]
[1761324006003,0.8035,3874.2,3874.1,0.85973]
[1761324007211,0.8035,3874.2,3874.1,0.66213]
[1761324008812,0.8035,3874.2,3874.1,0.85973]
[1761324009308,0.1296,3874.0,3873.8,3.40497369]
[1761324009511,0.7584,3873.9,3873.8,3.40497369]
[1761324009713,0.7584,3873.9,3873.8,3.86953369]
[1761324012211,1.32376125,3873.9,3873.8,3.86953369]
[1761324012416,0.3234,3873.9,3873.8,4.25733369]
[1761324013311,0.3234,3874.0,3873.9,1.04625]
[1761324013515,0.5449,3874.4,3874.3,0.1939]
[1761324013706,1.32474996,3874.4,3874.3,0.3878]
[1761324013903,0.56634996,3874.4,3874.3,1.04621]
[1761324014113,0.7584,3874.8,3874.7,0.3878]
[1761324014305,1.00144109,3874.8,3874.6,0.46447]
[1761324014510,1.32484109,3874.7,3874.6,0.65837]
[1761324014710,1.32484109,3874.7,3874.6,0.85227]
[1761324014917,1.11134109,3874.7,3874.6,1.04617]
[1761324015607,1.32484109,3874.7,3874.6,0.85227]
[1761324016503,1.11134109,3874.7,3874.6,1.04617]
[1761324016914,0.88984109,3874.7,3874.6,1.04617]
[1761324017414,0.88984109,3874.7,3874.6,4.25397]
[1761324017415,0.56644109,3874.7,3874.6,4.25397]
[1761324017616,1.52127688,3875.5,3874.6,4.25397]
[1761324017617,0.3234,3875.5,3875.4,1.04607]
[1761324018005,0.888,3875.5,3875.4,0.3878]
[1761324018208,0.7584,3874.8,3874.7,0.1939]
[1761324018511,0.7584,3874.8,3874.5,3.2078]
[1761324018512,0.435,3874.6,3874.5,3.86618]
[1761324018711,0.7584,3874.6,3874.5,4.06008]
[1761324019506,0.7584,3874.1,3874.0,0.85234]
[1761324019910,0.3234,3874.1,3874.0,1.04624]
[1761324020116,0.5449,3874.4,3874.3,0.8523]
[1761324020412,0.7584,3874.4,3874.3,0.8523]
[1761324021118,0.3234,3874.3,3874.1,0.46452]
[1761324021312,0.7584,3874.2,3874.1,0.1939]
[1761324021511,1.32517904,3874.2,3874.1,0.1939]
[1761324022621,0.3511,3874.0,3873.9,3.4017]
[1761324022917,1.45483163,3874.0,3873.9,3.5956]
[1761324023417,1.45483163,3874.0,3873.9,3.2078]
[1761324024216,1.45483163,3874.0,3873.9,3.4017]
[1761324024421,1.45483163,3874.0,3873.9,3.5956]
[1761324025522,1.45483163,3874.0,3873.9,0.3878]
[1761324025712,1.45483163,3874.0,3873.9,0.85235]
[1761324026920,1.45483163,3874.0,3873.9,0.65845]
[1761324028925,1.45483163,3874.0,3873.9,0.85235]
[1761324029122,1.45483163,3874.0,3873.9,0.3878]
[1761324029323,1.45483163,3874.0,3873.9,0.85235]
[1761324029524,1.13143163,3874.0,3873.8,0.46783369]
[1761324029724,1.32523163,3873.9,3873.8,0.66173369]
[1761324029917,1.32523163,3873.9,3873.8,0.19717369]
[1761324030117,1.32523163,3873.9,3873.8,0.00327369]
[1761324031320,2.24121622,3873.9,3873.8,0.00327369]
[1761324031722,1.32523163,3873.9,3873.8,0.00327369]
[1761324033522,0.888,3873.0,3872.9,0.46467]
[1761324034628,0.888,3873.0,3872.9,0.00235033]
[1761324037625,0.888,3873.0,3872.9,0.19625033]
[1761324039135,0.888,3873.0,3872.9,0.00235033]
[1761324040625,0.888,3873.0,3872.9,0.19615033]
[1761324040926,0.888,3873.0,3872.9,0.38995033]
[1761324041127,0.888,3873.0,3872.9,0.85463033]
[1761324042328,0.888,3873.0,3872.9,0.38995033]
[1761324042534,0.888,3873.0,3872.9,0.46703033]
[1761324042738,0.888,3873.0,3872.9,0.66083033]
[1761324043635,0.888,3873.0,3872.9,0.19615033]
[1761324044435,0.888,3873.0,3872.9,0.66083033]
[1761324048941,0.888,3873.0,3872.9,0.85463033]
[1761324051246,0.888,3873.0,3872.9,0.38995033]
[1761324051545,1.4569035,3873.0,3872.9,0.38995033]
[1761324051742,0.142,3872.0,3871.4,1.38743943]
[1761324051946,0.8058,3871.4,3871.3,0.65867]
[1761324052149,0.8058,3871.4,3871.3,0.1938]
[1761324053047,0.80855794,3871.4,3871.3,0.19699356]
[1761324053947,0.58865794,3871.4,3871.3,0.58459356]
[1761324054448,0.58865794,3871.4,3871.3,0.39079356]
[1761324054649,0.80855794,3871.4,3871.3,0.39079356]
[1761324054947,0.80855794,3871.4,3871.3,0.19699356]
[1761324055148,0.80855794,3871.4,3871.3,0.39079356]
[1761324057548,0.35205794,3871.4,3871.3,0.58399356]
[1761324058449,0.35205794,3871.4,3871.3,1.04886356]
[1761324058640,0.58795794,3871.4,3871.3,0.85566356]
[1761324058843,0.81845794,3871.4,3871.3,0.85566356]
[1761324060745,0.81845794,3871.4,3871.3,0.00319356]
[1761324060950,1.3866972,3871.4,3871.3,0.00319356]
[1761324061551,0.7973,3870.8,3870.7,3.2078]
[1761324062044,0.7973,3870.8,3870.7,3.5942]
[1761324062446,0.3309,3870.3,3869.9,3.2078]
[1761324062653,0.1388,3870.5,3869.9,3.2078]
[1761324062654,0.9361,3870.0,3869.9,3.21113835]
[1761324062854,0.9361,3870.0,3869.9,3.40433835]
[1761324063255,0.9361,3870.0,3869.9,0.00333835]
[1761324063552,0.9361,3870.0,3868.7,1.16294]
[1761324063553,0.3309,3868.0,3867.9,0.85168]
[1761324063753,0.3309,3868.0,3867.8,0.02585449]
[1761324063754,0.2359,3868.4,3868.3,1.04483]
[1761324063958,0.2305,3868.4,3868.3,0.65842]
[1761324064252,0.7973,3868.4,3868.3,4.05942]
[1761324064457,0.80064572,3868.4,3868.3,0.46727935]
[1761324064944,0.80064572,3868.4,3868.3,0.66047935]
[1761324065147,0.33424572,3868.4,3868.3,1.04687935]
[1761324065355,0.00334572,3868.4,3868.3,1.04687935]
[1761324065752,0.33424572,3868.4,3868.3,1.04687935]
[1761324066059,0.80064572,3868.4,3868.3,0.85367935]
[1761324066254,0.80064572,3868.4,3868.3,0.38845935]
[1761324066452,0.80064572,3868.4,3868.3,0.00205935]
[1761324066652,0.80064572,3868.4,3868.3,0.19525935]
[1761324066852,0.00334572,3868.4,3868.3,0.58165935]
[1761324067251,0.33424572,3868.4,3868.3,0.58165935]
[1761324067451,0.00334572,3868.4,3868.3,0.58165935]
[1761324067855,0.00334572,3868.4,3868.3,0.38845935]
[1761324067856,0.55974572,3868.4,3868.3,0.38845935]
[1761324068057,0.79124572,3868.4,3868.3,0.00205935]
[1761324068257,0.79124572,3868.4,3868.3,0.19665935]
[1761324068458,0.79124572,3868.4,3868.3,0.39125935]
[1761324068758,0.55974572,3868.4,3868.3,0.39125935]
[1761324069156,0.00334572,3868.4,3868.3,0.58585935]
[1761324071659,0.3357,3869.2,3869.1,0.85433]
[1761324071859,3.3466,3869.5,3869.4,0.8543]
[1761324071860,0.3595,3869.5,3869.4,0.8543]
[1761324072160,3.2078,3869.9,3869.1,1.16281]
[1761324072161,3.66,3869.9,3869.1,1.16281]
[1761324072366,0.6929,3869.5,3869.4,0.8543]
[1761324072560,0.47469368,3869.5,3869.4,1.0489]
[1761324073457,0.00249368,3869.5,3869.4,4.2567]
[1761324074155,0.69539368,3869.5,3869.4,3.597]
[1761324074361,0.69539368,3869.5,3868.3,0.00205935]
[1761324074362,0.7879,3868.7,3868.6,3.67299]
[1761324074661,0.5564,3868.7,3868.6,3.597]
[1761324074861,0.5564,3868.7,3868.6,4.06219]
[1761324075260,0.7879,3868.7,3868.6,3.597]
[1761324076069,0.5887,3869.0,3868.9,0.65976]
[1761324076564,0.9244,3869.0,3868.9,0.65976]
[1761324076769,0.9244,3869.0,3868.9,0.85436]
[1761324077072,0.9244,3869.0,3868.9,0.46516]
[1761324077273,0.3357,3868.8,3868.6,3.2078]
[1761324077562,0.7879,3868.7,3868.6,3.2078]
[1761324078962,0.80089,3868.6,3868.3,0.00205935]
[1761324079169,0.7879,3868.4,3868.3,0.46728935]
[1761324080462,0.7879,3868.4,3868.3,0.00205935]
[1761324080659,0.7879,3867.9,3867.8,0.68574449]
[1761324080861,0.3357,3867.9,3867.8,1.07494449]
[1761324081058,0.3357,3868.2,3868.1,1.04905]
[1761324081366,0.5564,3868.2,3868.1,0.85445]
[1761324081566,0.7879,3868.2,3868.1,0.46799675]
[1761324081761,0.7879,3868.2,3868.1,0.66259675]
[1761324082168,0.7879,3868.2,3868.1,0.85719675]
[1761324082771,0.1365,3868.5,3868.4,0.46522]
[1761324082965,0.5887,3869.0,3868.9,0.85436]
[1761324083465,0.9244,3869.0,3868.9,0.85436]
[1761324084167,0.7879,3868.7,3868.6,3.67299]
[1761324084472,0.7879,3868.3,3868.2,4.06224]
[1761324084777,0.5564,3868.3,3868.2,4.06224]
[1761324085072,0.7879,3868.3,3868.2,4.06224]
[1761324085470,0.7879,3868.3,3868.2,3.86764]
[1761324085669,0.7879,3868.3,3868.2,3.67304]
[1761324086771,0.7879,3868.3,3868.2,3.86764]
[1761324087169,0.7879,3868.3,3868.1,0.00274675]
[1761324087360,0.7879,3868.2,3868.1,0.00274675]
[1761324087564,1.25314,3868.2,3868.1,0.46799675]
[1761324087870,1.25314,3868.2,3868.1,0.66259675]
[1761324087871,0.7879,3868.2,3868.1,0.66259675]
[1761324088067,0.5564,3868.2,3868.1,0.85719675]
[1761324088672,0.3357,3868.2,3868.1,1.05179675]
[1761324088965,0.1365,3868.5,3868.4,0.85442]
[1761324088966,0.3572,3868.5,3868.4,0.85442]
[1761324089170,0.3572,3868.5,3868.4,1.04902]
[1761324089370,0.3572,3868.5,3868.4,0.85442]
[1761324089562,0.6929,3868.5,3868.4,0.85442]
[1761324089766,0.3357,3868.5,3868.4,1.04902]
[1761324089968,0.9244,3868.5,3868.4,0.46522]
[1761324090470,0.4722,3868.5,3868.4,1.04902]
[1761324090670,0.6929,3868.5,3868.4,0.85442]
[1761324091476,0.9244,3868.5,3868.4,0.46522]
[1761324091872,0.9244,3868.5,3868.4,0.85442]
[1761324092166,0.6929,3868.5,3868.4,0.85442]
[1761324092367,0.6929,3868.5,3868.4,1.04902]
[1761324092761,0.4722,3868.5,3868.4,1.04902]
[1761324092965,3.2078,3868.9,3868.4,1.04902]
[1761324092966,4.12516,3868.9,3868.8,0.65977]
[1761324093161,4.6988424,3868.9,3868.8,0.46517]
[1761324093373,4.5693824,3868.9,3868.8,0.85437]
[1761324093580,1.3615824,3868.9,3868.8,0.85437]
[1761324094276,0.9093824,3868.9,3868.8,1.04897]
[1761324094471,0.14143795,3868.9,3868.8,1.04897]
[1761324094667,0.47469368,3869.5,3869.4,1.0489]
[1761324094868,0.33819368,3869.5,3869.4,1.0489]
[1761324095068,0.00249368,3869.5,3869.4,1.0489]
[1761324096776,0.5564,3870.1,3870.0,0.85422]
[1761324096974,0.7879,3870.1,3870.0,0.85422]
[1761324097472,0.4522,3870.1,3869.8,0.46504]
[1761324097676,0.4522,3870.1,3869.6,3.2078]
[1761324097677,0.3203,3869.8,3869.6,3.2078]
[1761324097971,0.4406,3869.9,3869.6,3.86667]
[1761324097972,0.7609,3869.7,3869.6,3.86667]
[1761324098273,0.3203,3869.7,3869.6,4.25427]
[1761324098471,0.3548,3870.0,3869.9,0.85264]
[1761324098978,0.6751,3870.0,3869.9,0.85264]
[1761324099368,0.6751,3870.0,3869.9,1.04644]
[1761324100076,0.6751,3870.0,3869.9,0.85264]
[1761324100576,0.3203,3870.0,3869.9,1.04644]
[1761324101580,0.9012,3870.0,3869.9,0.85264]
[1761324102374,0.2261,3870.0,3869.9,0.85264]
[1761324102576,0.91912478,3871.6,3871.5,0.9215]
[1761324102780,0.4406,3871.8,3871.7,0.5663]
[1761324103178,3.4223,3872.2,3871.8,0.3475]
[1761324103377,3.4223,3872.2,3872.1,0.5663]
[1761324103575,0.21686623,3872.2,3872.1,0.7823]
[1761324103779,0.00236623,3872.2,3872.1,0.7823]
[1761324109280,0.7609,3873.1,3873.0,1.03096]
[1761324109486,0.4406,3873.1,3873.0,1.38616]
[1761324109979,0.2145,3873.1,3873.0,1.38616]
[1761324110182,0.21653826,3873.1,3873.0,1.38616]
[1761324111090,0.7609,3872.6,3872.5,0.81222]
[1761324111688,0.4406,3872.6,3872.5,1.38622]
[1761324111988,0.2145,3872.6,3872.5,1.38622]
[1761324112382,0.4406,3872.6,3872.5,1.38622]
[1761324115192,0.7609,3872.6,3872.5,0.9215]
[1761324115788,0.4406,3872.6,3872.5,1.38622]
[1761324115991,0.4406,3872.6,3872.5,0.9215]
[1761324118290,0.2274,3872.3,3872.2,0.3488]
[1761324118488,0.7716,3872.3,3872.2,0.3488]
[1761324118694,0.7716,3872.1,3872.0,0.715]
[1761324118894,0.7716,3872.1,3872.0,1.39978]
[1761324118895,0.4458,3872.1,3872.0,1.39978]
[1761324119094,0.4458,3872.4,3872.3,0.447]
[1761324119297,0.4458,3872.4,3872.3,0.7958]
[1761324119895,0.4458,3872.4,3872.0,0.60397]
[1761324120200,0.7716,3872.1,3872.0,1.17977]
[1761324120398,0.7716,3872.1,3872.0,0.715]
[1761324121088,0.7716,3872.1,3872.0,0.5758]
[1761324121288,0.7716,3872.1,3872.0,1.04058]
[1761324121683,0.7716,3872.1,3872.0,1.17128]
[1761324122102,0.7716,3872.1,3872.0,0.7065]
[1761324123400,0.7716,3872.1,3871.8,0.00262674]
[1761324123590,3.2078,3872.2,3871.8,0.00262674]
[1761324123591,0.7716,3871.9,3871.8,0.00262674]
[1761324123798,1.34419664,3871.9,3871.8,0.00262674]
[1761324125100,6.34419664,3871.9,3871.8,0.00262674]
[1761324126001,6.34419664,3871.9,3871.8,0.35142674]
[1761324126201,6.34419664,3871.9,3871.8,0.00262674]
[1761324126894,0.7716,3871.1,3871.0,0.3488]
[1761324127302,0.7716,3871.1,3871.0,0.5758]
[1761324127896,0.7716,3871.1,3871.0,0.71410707]
[1761324128104,1.34570846,3871.1,3871.0,0.00310707]
[1761324128297,1.34570846,3871.1,3871.0,0.34980707]
[1761324128504,0.2184,3871.1,3871.0,0.93110707]
[1761324128808,3.534,3871.7,3871.1,0.46489]
[1761324129106,3.534,3871.7,3871.5,0.5619]
[1761324129107,1.3459651,3871.6,3871.5,0.5619]
[1761324129308,1.0197651,3871.6,3871.5,0.928]
[1761324129800,1.3459651,3871.6,3871.5,0.928]
[1761324129998,0.7716,3871.2,3871.1,0.2152]
[1761324130200,1.3459651,3871.2,3871.1,0.2152]
[1761324130602,1.3459651,3871.2,3871.1,0.5619]
[1761324130802,1.0197651,3871.2,3871.1,0.7928]
[1761324131705,1.0197651,3871.2,3871.1,1.25769]
[1761324131902,1.0197651,3871.2,3871.1,0.7928]
[1761324133314,0.7965651,3871.2,3871.1,1.25769]
[1761324133811,1.0197651,3871.2,3871.1,0.7928]
[1761324134911,1.3459651,3871.2,3871.1,0.7928]
[1761324135303,0.5484,3871.1,3871.0,0.34980707]
[1761324135505,1.3459651,3871.1,3871.0,0.56500707]
[1761324135701,4.12692478,3871.7,3871.3,0.4461]
[1761324135702,0.2222,3871.4,3871.3,0.4461]
[1761324135913,1.02018142,3871.4,3871.3,0.7928]
[1761324136109,0.57478142,3871.4,3871.3,1.25767]
[1761324136317,3.2078,3871.7,3871.0,0.13830707]
[1761324136318,0.4454,3871.6,3871.5,0.5813]
[1761324136513,1.02021505,3871.6,3871.5,0.5813]
[1761324136712,0.91912478,3872.1,3871.9,0.46479]
[1761324136713,3.2078,3872.1,3871.9,0.46479]
[1761324136920,3.2078,3872.1,3872.0,0.928]
[1761324136921,3.6532,3872.1,3872.0,0.928]
[1761324137122,3.6532,3872.1,3871.2,1.1622]
[1761324137123,0.4454,3871.7,3871.2,0.3467]
[1761324137315,0.4454,3871.3,3871.2,0.4461]
[1761324137514,1.02040113,3871.3,3871.2,0.91098]
[1761324137820,1.02040113,3871.3,3871.2,0.7928]
[1761324138017,1.34660113,3871.3,3871.2,0.7928]
[1761324138215,1.34660113,3871.3,3871.2,0.3467]
[1761324138521,0.7716,3871.2,3871.1,3.5545]
[1761324138719,0.7716,3871.2,3871.1,3.7697]
[1761324139619,0.4454,3871.2,3871.1,3.7697]
[1761324139816,0.4454,3871.2,3871.1,4.46549]
[1761324140224,0.4454,3871.2,3871.1,4.0006]
[1761324140719,0.7716,3871.1,3871.0,0.00310707]
[1761324140919,1.34728577,3871.1,3871.0,0.00310707]
[1761324142523,7.26641055,3871.1,3871.0,0.00310707]
[1761324142818,16.52541055,3871.1,3871.0,0.00310707]
[1761324143019,15.60628577,3871.1,3871.0,0.00310707]
[1761324144320,0.3262,3870.2,3870.0,0.4819]
[1761324144525,1.34728577,3870.1,3870.0,0.6971]
[1761324144924,1.02108577,3870.1,3870.0,0.6971]
[1761324145320,1.34728577,3870.1,3870.0,0.5619]
[1761324145717,1.02376281,3870.1,3870.0,0.69979423]
[1761324145928,1.02376281,3870.1,3870.0,0.93069423]
[1761324146428,1.34996281,3870.1,3870.0,0.93069423]
[1761324146614,1.34996281,3870.1,3870.0,0.69979423]
[1761324146814,1.34996281,3870.1,3870.0,0.56459423]
[1761324147621,1.34996281,3870.1,3870.0,0.34939423]
[1761324148018,1.34996281,3870.1,3870.0,0.00269423]
[1761324148826,0.3262,3869.4,3869.1,0.3467]
[1761324149028,0.4454,3869.2,3869.1,0.4461]
[1761324149427,0.2222,3869.2,3869.1,0.7928]
[1761324149632,0.2222,3869.2,3869.1,1.25793]
[1761324149832,3.6532,3869.6,3869.5,0.6971]
[1761324150036,4.00526698,3869.6,3869.5,0.928]
[1761324150429,0.57526698,3869.6,3869.5,1.39308]
[1761324150738,0.77427704,3870.1,3870.0,0.5619]
[1761324151030,1.02305505,3870.1,3870.0,0.928]
[1761324152331,1.34925505,3870.1,3870.0,0.928]
[1761324152835,1.34925505,3870.1,3870.0,0.6971]
[1761324153730,0.57765505,3870.1,3870.0,0.928]
[1761324153930,0.79985505,3870.1,3870.0,0.928]
[1761324154233,1.34925505,3870.1,3870.0,0.3467]
[1761324154534,0.7716,3869.7,3869.6,0.5619]
[1761324154740,4.55437801,3869.7,3869.6,0.5619]
[1761324156336,4.22817801,3869.7,3869.6,0.7928]
[1761324159542,1.02037801,3869.7,3869.6,0.7928]
[1761324160844,0.57497801,3869.7,3869.6,1.25787]
[1761324161148,3.21047704,3870.1,3870.0,0.9304]
[1761324161340,4.23120854,3870.1,3870.0,0.9304]
[1761324161540,4.23120854,3870.1,3870.0,1.39542]
[1761324161740,0.23097704,3870.1,3870.0,1.39542]
[1761324162642,0.44477704,3870.1,3870.0,0.9304]
[1761324163240,1.34819219,3870.1,3870.0,0.6956]
[1761324163435,0.23097704,3870.1,3870.0,0.9304]
[1761324164547,0.44477704,3870.1,3870.0,0.9304]
[1761324165345,0.2283,3869.4,3869.3,0.4646]
[1761324165544,0.7681,3869.2,3869.1,0.00300333]
[1761324165842,1.01376185,3869.2,3869.1,0.46760333]
[1761324166044,1.01376185,3869.2,3869.1,0.79400333]
[1761324166950,0.4421,3869.2,3869.1,0.79400333]
[1761324167647,1.01413094,3869.2,3869.1,0.79400333]
[1761324167850,1.47925094,3869.2,3869.1,0.79400333]
[1761324170146,1.80525094,3869.2,3869.1,0.32940333]
[1761324170650,1.80525094,3869.2,3869.1,0.55920333]
[1761324170847,1.47925094,3869.2,3869.1,0.79400333]
[1761324171753,1.80525094,3869.2,3869.1,0.79400333]
[1761324172556,1.80525094,3869.2,3869.1,0.55920333]
[1761324173554,1.80525094,3869.2,3869.1,0.32940333]
[1761324174556,1.80525094,3869.2,3869.1,0.00300333]
[1761324175158,1.47925094,3869.2,3869.1,0.79400333]
[1761324175351,1.37705694,3869.6,3869.5,0.46508]
[1761324175352,0.91803796,3869.6,3869.5,0.46508]
[1761324175656,0.2283,3869.9,3869.8,0.791]
[1761324176358,0.00267704,3870.1,3870.0,0.1394]
[1761324176552,0.00267704,3870.1,3870.0,0.9304]
[1761324176858,0.23097704,3870.1,3870.0,0.9304]
[1761324178457,0.45617704,3870.1,3870.0,0.9304]
[1761324178852,0.78197704,3870.1,3870.0,0.3264]
[1761324179150,0.4576,3869.8,3869.7,0.7662]
[1761324179953,0.23507704,3870.1,3870.0,0.8983]
[1761324180460,0.46027704,3870.1,3870.0,0.8983]
[1761324181154,0.00267704,3870.1,3870.0,0.8983]
[1761324181557,0.23507704,3870.1,3870.0,0.8983]
[1761324181754,0.00267704,3870.1,3870.0,0.8983]
[1761324182059,0.46027704,3870.1,3870.0,0.8983]
[1761324182957,0.78607704,3870.1,3870.0,0.3289]
[1761324183158,0.3258,3870.0,3869.6,0.3289]
[1761324183458,0.4576,3869.7,3869.6,0.4373]
[1761324183654,0.7834,3869.7,3869.6,0.4373]
[1761324183846,0.7834,3869.7,3869.6,0.7662]
[1761324184256,0.7834,3869.7,3869.6,0.3289]
[1761324184559,0.4576,3869.4,3869.3,0.2235]
[1761324184949,0.7834,3869.4,3869.3,0.5524]
[1761324185760,3.9912,3869.4,3869.3,0.5524]
[1761324185960,3.9912,3869.4,3869.1,0.00300333]
[1761324185961,0.7834,3869.3,3869.2,0.3289]
[1761324186160,0.7834,3869.3,3869.2,0.5524]
[1761324186558,3.2078,3869.4,3869.3,0.3289]
[1761324186763,3.6654,3869.4,3869.3,0.7662]
[1761324187460,4.23324419,3869.4,3869.3,0.7662]
[1761324187755,0.80024419,3869.4,3869.3,0.7662]
[1761324187971,0.80024419,3869.4,3869.3,1.23131]
[1761324187972,0.56784419,3869.4,3869.3,1.23131]
[1761324188563,0.56784419,3869.4,3869.3,0.7662]
[1761324189257,0.78684419,3869.4,3869.3,0.7662]
[1761324189455,1.01934419,3869.4,3869.3,0.7662]
[1761324190255,0.4515,3869.2,3869.1,0.23270333]
[1761324190461,1.01934419,3869.2,3869.1,0.46720333]
[1761324190857,1.01934419,3869.2,3869.1,0.82130333]
[1761324191057,0.56784419,3869.2,3869.1,0.82130333]
[1761324191266,1.81088215,3869.6,3869.1,0.46720333]
[1761324191479,1.01934419,3869.5,3869.1,0.46720333]
[1761324191775,0.78684419,3869.4,3869.3,0.4642]
[1761324191960,0.78684419,3869.4,3869.3,0.8183]
[1761324192562,0.56784419,3869.4,3869.3,0.8183]
[1761324192768,0.78719932,3869.6,3869.5,0.9472]
[1761324192967,1.01969932,3869.6,3869.5,0.9472]
[1761324198272,1.37973398,3870.1,3869.5,0.9472]
[1761324198273,0.00267704,3870.1,3870.0,1.41222]
[1761324198770,3.2078,3870.7,3870.6,1.28325]
[1761324199165,3.2078,3871.1,3871.0,1.41209]
[1761324199677,0.00221259,3871.1,3871.0,1.41209]
[1761324200560,0.00221259,3871.1,3871.0,0.9472]
[1761324202472,0.91803796,3873.2,3873.1,0.2297]
[1761324202782,4.12583796,3874.4,3874.3,0.8183]
[1761324203071,3.4268,3874.9,3874.5,0.1289]
[1761324203261,0.219,3874.8,3874.7,0.8183]
[1761324203456,3.88382697,3874.6,3874.3,0.3541]
[1761324203660,0.219,3873.9,3873.8,3.4375]
[1761324204059,3.32632697,3873.9,3873.8,4.0261]
[1761324204665,0.325,3874.5,3873.8,3.67387337]
[1761324204861,0.219,3874.1,3874.0,0.7127]
[1761324205064,0.4515,3874.1,3874.0,0.5838]
[1761324205264,3.55882697,3874.1,3874.0,0.7127]
[1761324205664,3.55882697,3874.1,3874.0,0.9472]
[1761324206475,3.10732697,3874.1,3874.0,0.9472]
[1761324206866,9.627,3874.8,3874.1,0.3541]
[1761324207167,9.627,3874.8,3874.1,0.5838]
[1761324207168,0.219,3874.2,3874.1,0.5838]
[1761324207473,0.4515,3874.2,3874.1,0.8183]
[1761324207770,3.21053805,3874.9,3874.2,0.3541]
[1761324207967,3.10732697,3874.7,3874.5,1.05758]
[1761324208167,3.10732697,3874.7,3874.6,0.8183]
[1761324208370,0.00273805,3874.9,3874.8,0.8183]
[1761324208674,3.2078,3875.7,3875.6,0.3541]
[1761324208868,0.325,3876.8,3876.1,0.3541]
[1761324208869,3.2078,3876.7,3876.1,0.3541]
[1761324209173,3.2078,3876.7,3876.3,0.3541]
[1761324209364,3.2078,3876.7,3876.6,0.483]
[1761324209564,0.4387,3876.6,3875.9,3.2078]
[1761324209765,0.3277,3875.9,3875.6,0.3541]
[1761324209962,0.3277,3875.9,3875.6,0.35636201]